Cogmind - Beta 16.1 @@@ ROGUE MODE // 2026.04.02 @ 21:34:12 Player: EX-OCT Result: Destroyed by Executioner with Helical Railgun Performance ------------- Evolutions (8) 4000 Regions Visited (23) 4600 Robots Destroyed (103) 515 Value Destroyed (5025) 5025 Prototype IDs (78) 1560 Alien Tech Used (7) 1400 Bonus (25092) 25092 TOTAL SCORE: 42192 Bonus ------- High Alert Combat Kills 624 Follower Combat Kills 80 Hunted by Unchained 500 Entered Garrisons 800 Used RIF Installer 2000 Delivered SUBCON Basin 2000 Registered with UFD 300 Met Optimus in HQ 500 Met Zhirov 300 Met Sigix 2000 Destroyed Superfortress 15000 Met Optimus at Protoforge 1000 Friendly Fire -12 Cogmind --------- Core Integrity 0/1450 Matter 300/300 Energy 100/100 System Corruption 1% Temperature Cool (0) Movement Flying (45) Location -2/Protoforge Parts ------- > --- POWER (3) -------- (None) > --- PROPULSION (8) --- Impulse Thruster Array > --- UTILITY (10) ----- Makeshift Medium Armor Plating Centrium Light Armor Plating Experimental Hacking Suite Relay Coupler [NC] (38) Relay Coupler [Proto] (10) > --- WEAPON (2) ------- (None) > --- INVENTORY (5) ---- Makeshift Heavy Armor Plating Advanced System Restoration Module Null Cannon Compact Linear Accelerator Peak State ------------ > --- POWER ------------ Micro Fission Core Micro Antimatter Reactor > --- PROPULSION ------- Cooled VTOL Module Cooled Nuclear Pulse Thruster Cooled Nuclear Pulse Thruster Cooled Nuclear Pulse Thruster Cooled Nuclear Pulse Thruster Cooled Nuclear Pulse Thruster Nuclear Pulse Array > --- UTILITY ---------- Coolant Network Large Storage Unit Structural Scanner Long-range Sensor Array Improved Cloaking Device Experimental Propulsion Shielding Advanced Hacking Suite Experimental Hacking Suite Relay Coupler [NC] > --- WEAPON ----------- Sigix Terminator > --- INVENTORY -------- Light Antimatter Reactor Improved Fusion Compressor Advanced Transmission Jammer ECM Suite Experimental Reaction Control System Relay Coupler [Proto] Advanced System Restoration Module Advanced Trap Extractor Dimensional Node Initializer High-powered Transdimensional Reconstructor Supercharged TR Null Cannon Hypervelocity Multirail [Rating: 161] Favorites ----------- Power Micro Fission Core Engine Subdweller Power Source Power Core Micro Fission Core Reactor Micro Antimatter Reactor Propulsion Cooled Nuclear Pulse Thruster Treads Spiked Treads Leg Biometal Leg Wheel Compact Wheel Flight Unit Cooled Nuclear Pulse Thruster Utility Large Storage Unit Device Long-range Sensor Array Storage Large Storage Unit Processor Experimental Signal Interpreter Hackware Advanced Hacking Suite Protection Experimental Propulsion Shielding Artifact Phase Armor Weapon Subdweller Beam Cannon Energy Gun Subdweller Laser Energy Cannon Subdweller Beam Cannon Ballistic Gun Assault Rifle Ballistic Cannon Battle Cannon Launcher Subdweller Shrapnel Launcher Special Weapon Mining Laser Impact Weapon Impact Mace Slashing Weapon Falx Piercing Weapon Plasma Lance Special Melee Weapon Improved Datajack Build | -11 -10 -10 -7 -7 -5 -5 -5 -5 -5 -5 -4 -4 -4 -4 -4 -4 -4 -3 -3 -3 -2 -2 -2 ------- Run | Yrd Mat Sub Rec Scr Fac Gar Fac Upp Upp Zhi Pro Fac Was Fac Gar Fac Gar Res Tes Gar Res Qua Frg Slots Evolved 16 | . . . . . 10 . . . . . . 2 . . . . . 2 . . 2 . . Power 2 | . . . . . 1 . . . . . . . . . . . . . . . 1 . . Propulsion 6 | . . . . . 5 . . . . . . 1 . . . . . . . . . . . Utility 8 | . . . . . 4 . . . . . . 1 . . . . . 2 . . 1 . . Weapon . | . . . . . . . . . . . . . . . . . . . . . . . . Parts Attached 156 | 8 5 21 2 1 39 . 8 4 2 3 . 7 . 10 1 3 1 . 13 . 5 9 14 Power 18 | 1 . 3 1 . 5 . 1 . . 1 . 1 . . . . . . . . 1 2 2 Engine 8 | 1 . 3 1 . 2 . . . . . . . . . . . . . . . 1 . . Core 6 | . . . . . 3 . 1 . . . . 1 . . . . . . . . . . 1 Reactor 4 | . . . . . . . . . . 1 . . . . . . . . . . . 2 1 Propulsion 28 | 2 . 5 1 1 13 . . . 1 . . . . . . . 1 . 1 . . . 3 Treads 5 | 1 . 3 1 . . . . . . . . . . . . . . . . . . . . Leg 3 | . . . . 1 . . . . . . . . . . . . . . 1 . . . 1 Wheel 3 | 1 . 2 . . . . . . . . . . . . . . . . . . . . . Hover . | . . . . . . . . . . . . . . . . . . . . . . . . Flight 17 | . . . . . 13 . . . 1 . . . . . . . 1 . . . . . 2 Utility 67 | 2 2 2 . . 16 . 3 3 1 1 . 5 . 7 1 3 . . 7 . 3 4 7 Device 34 | 1 . 2 . . 10 . 1 2 1 . . 3 . 4 . 2 . . 4 . 1 3 . Storage 8 | 1 2 . . . 1 . 1 1 . 1 . . . . . . . . 1 . . . . Processor 7 | . . . . . 3 . 1 . . . . . . 1 . . . . 1 . 1 . . Hackware 9 | . . . . . 2 . . . . . . 2 . 2 . 1 . . . . 1 . 1 Protection 8 | . . . . . . . . . . . . . . . 1 . . . 1 . . . 6 Artifact 1 | . . . . . . . . . . . . . . . . . . . . . . 1 . Weapon 43 | 3 3 11 . . 5 . 4 1 . 1 . 1 . 3 . . . . 5 . 1 3 2 Energy Gun 6 | . . 6 . . . . . . . . . . . . . . . . . . . . . Energy Cannon 5 | . . 3 . . . . . . . . . . . . . . . . 2 . . . . Ballistic Gun 7 | 3 2 . . . . . . . . . . . . . . . . . 1 . . 1 . Ballistic Cannon 4 | . . 1 . . . . . 1 . . . . . . . . . . . . . . 2 Launcher 4 | . . 1 . . 1 . . . . . . . . 1 . . . . . . . 1 . Special Weapon 2 | . 1 . . . . . . . . 1 . . . . . . . . . . . . . Impact Weapon 1 | . . . . . . . 1 . . . . . . . . . . . . . . . . Slashing Weapon 5 | . . . . . 2 . 1 . . . . . . . . . . . 1 . . 1 . Piercing Weapon 5 | . . . . . 1 . 1 . . . . 1 . 1 . . . . . . 1 . . Special Melee Weapon 4 | . . . . . 1 . 1 . . . . . . 1 . . . . 1 . . . . Unidentified Prototypes 38 | . . . . . 3 . 1 1 . 4 . 1 . 4 . . . . 11 . 1 7 5 Parts Lost 35 | . . 6 . . 5 . . 1 . . . . . . . . 1 . . . 2 3 17 Power 5 | . . . . . 1 . . . . . . . . . . . . . . . . 2 2 Propulsion 13 | . . 3 . . 1 . . . . . . . . . . . . . . . 1 . 8 Utility 10 | . . . . . 1 . . 1 . . . . . . . . . . . . 1 . 7 Weapon 7 | . . 3 . . 2 . . . . . . . . . . . 1 . . . . 1 . Highest Loss Streak 8 | . . 2 . . 2 . . 1 . . . . . . . . 1 . . . 1 2 8 To Critical Strikes 1 | . . 1 . . . . . . . . . . . . . . . . . . . . . Average Backups 12 | 2 10 17 5 10 6 9 13 14 14 14 14 13 14 13 13 13 13 11 11 12 12 14 5 Power 1 | . . 1 . . . 1 1 2 1 1 2 2 2 1 1 1 2 2 1 1 1 2 . Propulsion 2 | 2 5 5 3 3 2 4 4 4 3 3 3 2 2 1 2 2 1 1 . 1 1 . . Utility 4 | . 2 3 . 1 2 4 6 8 8 7 7 7 8 7 7 7 7 5 5 6 6 6 2 Weapon 2 | . 3 6 2 2 1 . . . 1 1 1 1 1 1 2 2 2 2 2 2 3 2 2 Tool/Special . | . . . . . . . . . . . . . . . . . . . . . . . . Unused Backups 13 | . . 3 . . 2 . . 1 . . . . . 1 . . . . 1 . . 1 4 Power 3 | . . . . . . . . . . . . . . . . . . . 1 . . . 2 Propulsion . | . . . . . . . . . . . . . . . . . . . . . . . . Utility 6 | . . 3 . . . . . 1 . . . . . 1 . . . . . . . . 1 Weapon . | . . . . . . . . . . . . . . . . . . . . . . . . Tool/Special 4 | . . . . . 2 . . . . . . . . . . . . . . . . 1 1 Average Slot Usage (%) 90 | . 100 99 99 94 82 88 91 86 94 94 94 93 94 93 94 94 98 93 95 100 96 82 53 Engine 12 | . 14 14 39 40 6 . . . . . . . . . . . . . . . 3 . . Core 3 | . . . . . 3 11 11 11 11 11 11 10 10 10 10 10 10 9 9 9 8 3 1 Treads 7 | . 14 16 20 20 . . . . . . . . . . . . . . . . . . . Wheel 2 | . 14 11 . . . . . . . . . . . . . . . . . . . . . Flight 18 | . . . . . 28 35 35 35 35 35 35 36 36 35 36 36 41 38 37 38 31 30 15 Device 12 | . 14 13 10 10 14 10 12 11 17 17 17 15 15 13 10 10 5 12 14 14 20 14 9 Storage 7 | . 14 13 10 10 2 5 5 5 5 5 5 5 5 5 5 5 5 4 4 4 4 4 1 Processor 3 | . . . . . 8 5 9 11 11 11 11 6 5 5 5 5 5 4 4 4 4 3 . Hackware 5 | . . . . . 3 11 5 1 . . . 8 10 11 10 14 15 14 14 14 13 13 13 Protection 1 | . . . . . . . . . . . . . . . 5 . 4 4 3 3 . 3 5 Energy Gun 2 | . . 10 10 4 . . . . . . . . . . . . . . . . . . . Energy Cannon 4 | . . 12 10 10 . . . . . . . . . . . . . . . . . . . Slashing Weapon 1 | . . . . . 3 5 4 1 5 5 5 . . . . . . . 3 4 2 3 1 Special Melee Weapon 1 | . . . . . 3 . 2 1 5 5 5 5 5 5 5 5 4 . . 4 4 . . Peak Build Rating 161 | 7 8 40 44 29 95 98 98 97 93 101 93 109 108 123 124 124 121 129 139 134 143 161 140 Average Rating 76 | 5 7 14 43 27 72 97 90 86 91 92 93 105 108 113 124 115 118 120 123 130 136 143 94 On Entrance 87 | . 7 8 40 27 27 95 98 90 90 92 93 93 108 108 120 124 116 113 120 129 131 129 140 Avg Prop Armor Cover (%) 9 | 17 12 16 . . . . . . . . . . . 2 . 3 . . . 1 . . 2 Naked Turns . | . . . . . . . . . . . . . . . . . . . . . . . . Heaviest Build 78 | 13 48 68 78 78 74 34 41 44 40 38 38 39 38 40 38 38 45 39 41 41 55 52 44 Greatest Support 67 | 16 16 40 40 40 48 60 45 58 58 44 58 65 59 49 65 65 66 47 47 66 62 64 67 Greatest Overweight (x) 3 | . 2 3 1 1 1 . . . . . . . . . . . . . . . 1 1 1 Average Overweight (x) . | . . 2 1 1 . . . . . . . . . . . . . . . . . . . Largest Inventory Capacity 20 | 8 20 20 20 20 20 10 15 15 15 15 15 15 15 15 15 15 15 15 15 15 15 15 15 Average Capacity 15 | 6 13 20 20 20 8 10 14 15 15 15 15 15 15 15 15 15 15 15 15 15 15 15 7 Most Carried 20 | 5 15 20 20 12 12 10 15 15 15 15 15 15 15 15 14 15 15 15 15 15 15 15 15 Average Carried 13 | 3 10 18 19 10 6 9 13 14 14 14 15 14 15 14 14 14 14 13 13 14 13 14 6 Final Capacity 20 | 8 20 20 20 20 10 10 15 15 15 15 15 15 15 15 15 15 15 15 15 15 15 15 5 Final Carried 20 | 5 14 20 6 12 10 10 15 15 15 15 15 15 15 14 14 15 15 13 14 15 14 15 5 Class Distribution -------------------- 30% | Scavenger-Mutant 25% | Hacker-Sprinter 11% | Mutant 9% | Scout 6% | Hacker-Ninja 5% | Sprinter 5% | Hacker-Scout Dominant Class ---------------- Mutant | -10/Materials Scavenger-Mutant | -10/Subcaves Scavenger-Mutant | -7/Recycling Scavenger-Mutant | -7/Scraptown Scout | -5/Factory Hacker-Sprinter | -5/Garrison Scout | -5/Factory Scout | -5/Upper Caves Scout | -5/Upper Caves Scout | -5/Zhirov Scout | -4/Proximity Caves Scout | -4/Factory Scout | -4/Waste Hacker-Sprinter | -4/Factory Hacker-Sprinter | -4/Garrison Hacker-Scout | -4/Factory Hacker-Sprinter | -4/Garrison Hacker-Scout | -3/Research Hacker-Scout | -3/Testing Hacker-Sprinter | -3/Garrison Hacker-Ninja | -2/Research Hacker-Sprinter | -2/Quarantine Sprinter | -2/Protoforge Resources | -11 -10 -10 -7 -7 -5 -5 -5 -5 -5 -5 -4 -4 -4 -4 -4 -4 -4 -3 -3 -3 -2 -2 -2 ----------- Run | Yrd Mat Sub Rec Scr Fac Gar Fac Upp Upp Zhi Pro Fac Was Fac Gar Fac Gar Res Tes Gar Res Qua Frg Matter Collected 4231 | 298 100 434 46 30 625 . 170 464 40 . 110 130 . 120 . 210 103 20 176 206 84 446 419 Remotely . | . . . . . . . . . . . . . . . . . . . . . . . . Salvage Created 4514 | 77 143 604 150 . 779 . 319 337 . . . 229 . 124 . 213 97 20 176 . 70 418 758 Parts 214 | 8 10 30 12 . 21 . 16 7 . . . 8 . 8 . 9 12 7 8 . 7 11 40 Haulers Intercepted 6 | . . . . . 3 . 2 1 . . . . . . . . . . . . . . . Recyclers Shooed . | . . . . . . . . . . . . . . . . . . . . . . . . Parts Field Recycled . | . . . . . . . . . . . . . . . . . . . . . . . . Retrieved Matter . | . . . . . . . . . . . . . . . . . . . . . . . . Parts Self-Destructed 12 | . . 6 . . . . . 6 . . . . . . . . . . . . . . . Prevented . | . . . . . . . . . . . . . . . . . . . . . . . . Parts Restored . | . . . . . . . . . . . . . . . . . . . . . . . . Kills | -11 -10 -10 -7 -7 -5 -5 -5 -5 -5 -5 -4 -4 -4 -4 -4 -4 -4 -3 -3 -3 -2 -2 -2 ------- Run | Yrd Mat Sub Rec Scr Fac Gar Fac Upp Upp Zhi Pro Fac Was Fac Gar Fac Gar Res Tes Gar Res Qua Frg Combat Hostiles Destroyed 60 | . 5 17 1 . 8 . . 5 . . . . . . . . 6 . . . . 3 15 Melee 4 | . . . . . 1 . . . . . . . . . . . 1 . . . . 2 . Guns 24 | . 5 8 . . 1 . . . . . . . . . . . . . . . . . 10 Cannons 10 | . . 4 1 . . . . 5 . . . . . . . . . . . . . . . AOE 21 | . . 5 . . 6 . . . . . . . . . . . 5 . . . . . 5 Classes Destroyed 19 | 2 2 3 . . 6 . 1 . . . . . . . . . 1 . . . . . 4 Worker 3 | . . . . . 1 . . . . . . . . . . . . . . . 2 . . Builder 3 | . . . . . 1 . 1 . . . . . . . . . . . . . 1 . . Tunneler 2 | 1 . . . . 1 . . . . . . . . . . . . . . . . . . Hauler 6 | . . . . . 3 . 2 1 . . . . . . . . . . . . . . . Recycler 9 | 1 . . 2 . 1 . . . . . . 1 . . . 2 . . 1 . . 1 . Mechanic 1 | . . . . . 1 . . . . . . . . . . . . . . . . . . Operator 4 | . . . . . . . 1 . . . . 1 . 1 . . . 1 . . . . . Drone 3 | . . . . . . . . . . . . . . . . . . . . . . . 3 Turret 2 | . . 2 . . . . . . . . . . . . . . . . . . . . . Watcher 14 | . . . . . 3 . 3 . . . . 2 . 3 . . . . 1 . 1 1 . Swarmer 19 | . 3 5 . . 6 . . . . . . . . . . . 5 . . . . . . Grunt 13 | . 2 1 . . 1 . . 5 . . . . . . . . . . . . . 1 3 Duelist 1 | . . . . . 1 . . . . . . . . . . . . . . . . . . Protector 1 | . . . . . . . . . . . . . . . . . . . . . . . 1 Sentry 2 | . . 1 1 . . . . . . . . . . . . . . . . . . . . Hunter 1 | . . . . . . . . . . . . . . . . . . . . . . . 1 Programmer 3 | . . . . . . . . . . . . . . . . . 1 . . . . 2 . Hotshot 3 | . . . . . . . . . . . . . . . . . . . . . . . 3 Striker 4 | . . . . . . . . . . . . . . . . . . . . . . . 4 Subdweller 10 | . . 10 . . . . . . . . . . . . . . . . . . . . . Best Kill Streak 7 | 2 3 7 2 . 6 . 2 3 . . . 2 . 1 . 2 5 1 2 . 1 2 5 Combat Bots Only 7 | . 3 7 1 . 5 . . 3 . . . . . . . . 5 . . . . 1 5 Max Kills in Single Turn 5 | 1 2 4 1 . 4 . 1 2 . . . 1 . 1 . 1 5 1 1 . 1 1 5 Gunslinging 1 | . 1 . . . . . . . . . . . . . . . . . . . . . . Exploded 5 | . . 4 . . 3 . . . . . . . . . . . 5 . . . . . 5 Melee 1 | . . . . . 1 . . . . . . . . . . . 1 . . . . 1 . Uniques/NPCs Destroyed . | . . . . . . . . . . . . . . . . . . . . . . . . Combat | -11 -10 -10 -7 -7 -5 -5 -5 -5 -5 -5 -4 -4 -4 -4 -4 -4 -4 -3 -3 -3 -2 -2 -2 -------- Run | Yrd Mat Sub Rec Scr Fac Gar Fac Upp Upp Zhi Pro Fac Was Fac Gar Fac Gar Res Tes Gar Res Qua Frg Hostile Shots Fired 519 | . 30 88 18 . 65 3 16 25 6 . 4 12 . 5 8 4 17 8 . 30 5 23 152 Missed 243 | . 9 30 5 . 33 1 8 14 2 . 2 5 . 4 2 2 9 7 . 12 1 10 87 Hits 276 | . 21 58 13 . 32 2 8 11 4 . 2 7 . 1 6 2 8 1 . 18 4 13 65 Melee 3 | . . . . . 2 . . . . . . . . . . 1 . . . . . . . Projectile 273 | . 21 58 13 . 30 2 8 11 4 . 2 7 . 1 6 1 8 1 . 18 4 13 65 AOE 3 | . . 3 . . . . . . . . . . . . . . . . . . . . . Critical Strikes 14 | . 1 1 . . 4 . . 1 . . . . . . . . 1 . . 1 . . 5 Part Disruptions 1 | . . . . . . . . . . . . . . . . . . . . . . 1 . Damage Taken 6398 | . 222 984 101 . 767 26 101 201 54 . 31 127 . 23 27 42 153 . . 348 173 381 2637 Core 1883 | . 37 124 12 . 167 . 13 . 25 . 16 20 . . . . 62 . . 97 71 48 1191 Absorbed by Shields 79 | . . . . . . 10 . 19 . . . . . . . . . . . 35 . . 15 Redirected to Shielding 302 | . . . . . . . . . . . . . . . . . 27 . . 109 . 89 77 Regen/Repaired (Parts) 319 | . . . . . 12 . . . . . . 30 . 66 . . . . 75 . . 136 . Core Remaining (%) 78 | 100 . . . 30 . . . . . . 77 . . . . . 92 . . 92 . . . Volleys Fired 199 | 3 22 73 2 . 8 . . 38 . . . . . . . . 1 1 2 2 11 2 34 Largest 2 | 2 2 2 2 . 2 . . 1 . . . . . . . . 1 1 1 1 1 1 1 Hottest 160 | 40 100 160 140 . 100 . . 51 . . . . . . . . 49 . 130 130 130 130 50 Shots Fired 255 | 6 37 109 4 . 9 . . 38 . . . . . . . . 1 1 2 2 11 2 33 Gun 130 | 6 30 55 2 . 5 . . . . . . . . . . . . . . . . . 32 Cannon 101 | . . 44 2 . . . . 38 . . . . . . . . . . 2 2 11 2 . Launcher 8 | . . 2 . . 4 . . . . . . . . . . . 1 . . . . . 1 Special 16 | . 7 8 . . . . . . . . . . . . . . . 1 . . . . . Kinetic 125 | 6 30 15 . . 4 . . 38 . . . . . . . . . . . . . . 32 Thermal 116 | . 7 82 4 . 5 . . . . . . . . . . . . . 2 2 11 2 1 Explosive 3 | . . 2 . . . . . . . . . . . . . . 1 . . . . . . Electromagnetic 10 | . . 10 . . . . . . . . . . . . . . . . . . . . . Robot Hit Streak 17 | 5 7 17 3 . 8 . . 5 . . . . . . . . 3 . . . . . 4 Robot Miss Streak 8 | . 3 4 1 . . . . 2 . . . . . . . . . . . . . . 8 Penetration Max 2 | . . . . . . . . 1 . . . . . . . . . . . . . . 2 Secondary Targets 2 | . 1 1 . . . . . . . . . . . . . . . . . . . . . Max Gunslinging Chain 1 | . 1 1 . . . . . . . . . . . . . . . . . . . . . Shots Hit Robots 243 | 5 19 68 3 . 38 . 17 20 . . . 10 . 8 . 2 12 1 2 . 7 10 21 Core Hits 137 | 3 8 31 2 . 33 . 7 8 . . . 2 . 4 . 2 7 1 2 . 2 3 22 Critical Kills 16 | . . . . . . . . 6 . . . . . . . . . . . . . . 10 Critical Parts Destroyed 28 | . . . . . . . . 7 . . . . . . . . . . . . . . 21 Critical Strikes 54 | . . 2 . . 2 . . 13 . . . 1 . . . . . . . . . 3 33 Destroy 46 | . . . . . . . . 13 . . . . . . . . . . . . . . 33 Blast 2 | . . 2 . . . . . . . . . . . . . . . . . . . . . Sever 1 | . . . . . . . . . . . . 1 . . . . . . . . . . . Impale 5 | . . . . . 2 . . . . . . . . . . . . . . . . 3 . Melee Attacks 418 | . . . . . 97 4 66 4 4 . . 49 . 37 7 23 20 4 13 12 36 37 5 Impact . | . . . . . . . . . . . . . . . . . . . . . . . . Slashing 200 | . . . . . 51 4 63 4 4 . . 9 . . . . . . 12 12 22 14 5 Piercing 202 | . . . . . 44 . 1 . . . . 38 . 37 7 23 10 4 1 . 14 23 . Sneak Attacks 39 | . . . . . 9 . 5 . . . . 4 . 2 . 2 10 . 1 . 5 1 . Combat Hostiles . | . . . . . . . . . . . . . . . . . . . . . . . . Follow-up Attacks . | . . . . . . . . . . . . . . . . . . . . . . . . Damage Inflicted 16531 | 61 243 1753 94 . 2315 . 1078 290 . . . 545 . 639 . 202 637 38 196 . 679 561 7200 Guns 1701 | 61 243 934 43 . 104 . . . . . . . . . . . . . . . . . 316 Cannons 828 | . . 512 26 . . . . 290 . . . . . . . . . . . . . . . Explosions 8394 | . . 307 . . 699 . . . . . . . . . . . 566 . . . . . 6822 Melee 5574 | . . . . . 1503 . 1078 . . . . 545 . 639 . 202 71 38 196 . 679 561 62 Ramming 34 | . . . 25 . 9 . . . . . . . . . . . . . . . . . . Kinetic 1497 | 61 243 227 . . 360 . . 290 . . . . . . . . . . . . . . 316 Thermal 8214 | . . 1109 69 . 161 . . . . . . . . . . . 53 . . . . . 6822 Explosive 880 | . . 254 . . 113 . . . . . . . . . . . 513 . . . . . . Electromagnetic 332 | . . 163 . . 169 . . . . . . . . . . . . . . . . . . Impact . | . . . . . . . . . . . . . . . . . . . . . . . . Slashing 2624 | . . . . . 498 . 1078 . . . . 179 . . . . . . 196 . 611 . 62 Piercing 2950 | . . . . . 1005 . . . . . . 366 . 639 . 202 71 38 . . 68 561 . Highest Corruption 2 | . . . . . . . . . . . . 1 1 1 . . 2 . . . . 1 1 Average Corruption 1 | . . . . . . . . . . . . 1 1 1 . . 2 . . . . 1 1 Corruption Purged 2 | . . . . . . . . . . . . . . 1 . . . . . . . 1 . Corruption Blocked . | . . . . . . . . . . . . . . . . . . . . . . . . Effects 5 | . . . . . . . . . . . . . . 1 . . . . . . . . 4 Message Errors 2 | . . . . . . . . . . . . . . . . . . . . . . . 2 Heat Flow Errors 1 | . . . . . . . . . . . . . . . . . . . . . . . 1 Data Loss (minor) 1 | . . . . . . . . . . . . . . 1 . . . . . . . . . Weapon Failures 1 | . . . . . . . . . . . . . . . . . . . . . . . 1 Overload Shots . | . . . . . . . . . . . . . . . . . . . . . . . . Overflow Damage 1522 | . . 7 . . 178 . 194 . . . . 171 . 124 . . . . . . 325 90 433 Projectiles . | . . . . . . . . . . . . . . . . . . . . . . . . Explosions 431 | . . 7 . . 3 . . . . . . . . . . . . . . . . . 421 Melee 1091 | . . . . . 175 . 194 . . . . 171 . 124 . . . . . . 325 90 12 Knockbacks 1 | . . . . . . . . 1 . . . . . . . . . . . . . . . Impact . | . . . . . . . . . . . . . . . . . . . . . . . . Kinetic 1 | . . . . . . . . 1 . . . . . . . . . . . . . . . Secondary . | . . . . . . . . . . . . . . . . . . . . . . . . Self-Inflicted Damage 225 | . . 67 . . 158 . . . . . . . . . . . . . . . . . . Shots 5 | . . 2 . . 3 . . . . . . . . . . . . . . . . . . Rammed 4 | . . . 3 . 1 . . . . . . . . . . . . . . . . . . Targets Rammed 7 | . . . 5 . 2 . . . . . . . . . . . . . . . . . . Kicked . | . . . . . . . . . . . . . . . . . . . . . . . . Crushed 3 | . . . 2 . 1 . . . . . . . . . . . . . . . . . . Highest Temperature 294 | . 60 243 168 . 90 93 252 294 198 . 118 279 246 129 110 74 201 5 24 111 157 288 186 Average Temperature 50 | . 19 44 84 . 32 47 55 52 93 . 67 85 220 36 69 33 71 4 7 27 45 57 79 Received Heat Transfer 922 | . 87 261 30 . 144 12 18 109 . . . 21 . 9 . . 9 . . 42 18 . 162 Effects 9 | . . 3 . . . . 3 . . . . 3 . . . . . . . . . . . Interference 9 | . . 3 . . . . 3 . . . . 3 . . . . . . . . . . . Siege Activations . | . . . . . . . . . . . . . . . . . . . . . . . . Martial Activations . | . . . . . . . . . . . . . . . . . . . . . . . . Shielding Activations . | . . . . . . . . . . . . . . . . . . . . . . . . Robots Disrupted . | . . . . . . . . . . . . . . . . . . . . . . . . Combat Hostiles . | . . . . . . . . . . . . . . . . . . . . . . . . Robots Corrupted . | . . . . . . . . . . . . . . . . . . . . . . . . Combat Hostiles . | . . . . . . . . . . . . . . . . . . . . . . . . Parts Fried 1 | . . 1 . . . . . . . . . . . . . . . . . . . . . Impact Corruptions . | . . . . . . . . . . . . . . . . . . . . . . . . Robots Melted . | . . . . . . . . . . . . . . . . . . . . . . . . Combat Hostiles . | . . . . . . . . . . . . . . . . . . . . . . . . Parts Melted 8 | . . 3 . . . . . . . . . . . . . . . . . . . 5 . Heat Transferred 2132 | . . 1370 87 . 175 . . . . . . . . . . . 50 . . . . . 450 Parts Sabotaged . | . . . . . . . . . . . . . . . . . . . . . . . . Parts Stolen . | . . . . . . . . . . . . . . . . . . . . . . . . Parts Stripped . | . . . . . . . . . . . . . . . . . . . . . . . . Power Chain Reactions 3 | . . 1 . . 1 . . . . . . . . . . . 1 . . . . . . Alert | -11 -10 -10 -7 -7 -5 -5 -5 -5 -5 -5 -4 -4 -4 -4 -4 -4 -4 -3 -3 -3 -2 -2 -2 ------- Run | Yrd Mat Sub Rec Scr Fac Gar Fac Upp Upp Zhi Pro Fac Was Fac Gar Fac Gar Res Tes Gar Res Qua Frg Maximum Alert Level 4 | . . . 1 . 1 2 2 . . . . . . . 1 . 2 1 . 1 . . 4 Low Security (%) 81 | 100 100 . 88 . 71 . . . . . . 100 100 100 77 100 42 . 100 75 100 100 23 Level 1 12 | . . . 11 . 28 91 89 . . . . . . . 22 . 40 100 . 24 . . . Level 2 . | . . . . . . 8 10 . . . . . . . . . 17 . . . . . . Level 3 1 | . . . . . . . . . . . . . . . . . . . . . . . 33 Level 4 2 | . . . . . . . . . . . . . . . . . . . . . . . 43 Level 5 . | . . . . . . . . . . . . . . . . . . . . . . . . High Security . | . . . . . . . . . . . . . . . . . . . . . . . . Max Security . | . . . . . . . . . . . . . . . . . . . . . . . . Peak Influence 1215 | 5 78 . 233 . 358 435 415 . . . . 59 7 154 315 173 526 252 160 278 164 157 1215 Initial 250 | . . . 213 . . 238 228 . . . . 40 7 4 81 165 81 250 138 100 156 58 53 Average 128 | 2 30 . 109 . 118 311 296 . . . . 34 7 32 145 141 246 238 135 147 110 22 879 Influence Increases 6857 | 10 224 510 150 . 778 197 454 465 75 . 75 212 . 337 294 111 455 26 116 178 215 428 1547 Destroy 0b10 Robot/C 1060 | . 100 180 20 . 160 . . 100 . . . . . . 60 . 160 . . . . 60 220 Destroy 0b10 Robot/NC 230 | 10 . . 10 . 55 . 35 5 . . . 20 . 20 . 10 . 5 10 . 20 10 20 Destroy Leader 108 | . 20 . . . 22 . 10 . . . . 4 . 6 . . 10 . 2 . 2 12 20 Allied During Kill 102 | . . . . . . . . . . . . . . . 14 . 88 . . . . . . Trap Triggered on 0b10 60 | . . . . . 10 . . . . . . . . 50 . . . . . . . . . Successful Hack 482 | . 36 . 30 . 76 10 89 . . . . 60 . 50 . 18 . . 15 30 16 52 . Select Force Hacks 120 | . 30 . 90 . . . . . . . . . . . . . . . . . . . . Disable Machine 960 | . . . . . 90 . 30 . . . . . . 15 . . 75 . 45 15 . 135 555 Anti-Garrison Action 350 | . . . . . . 100 . . . . . . . . 100 . 50 . . 100 . . . Destroy Structure 1255 | . 8 . . . 230 12 80 . . . . 68 . 46 15 38 72 6 14 33 102 39 492 Partial Spotted 465 | . . . . . . 15 120 . . . . 45 . 75 . 15 . 15 . . 45 15 120 Lose Combat Pursuer 1665 | . 30 330 . . 135 60 90 360 75 . 75 15 . 75 105 30 . . 30 . 30 105 120 Influence Decreases 5681 | 10 209 79 596 . 438 102 635 319 96 379 10 255 15 228 95 310 125 226 228 34 388 438 466 Entered New Map 1912 | . . 8 233 . . 102 207 95 76 379 . 25 15 3 35 150 35 196 108 34 122 47 42 Time Decay 3199 | 10 209 51 363 . 398 . 318 214 20 . 10 230 . 215 . 160 . 30 110 . 246 361 254 Search Patrol Dispatched 100 | . . . . . . . 100 . . . . . . . . . . . . . . . . Lost Part 300 | . . 20 . . 40 . . 10 . . . . . . . . 10 . . . 20 30 170 Lost Ally 170 | . . . . . . . 10 . . . . . . 10 60 . 80 . 10 . . . . Squads Dispatched 70 | . 2 . . . 12 . 12 . . . . 9 . 13 . 5 . 2 1 . 8 1 5 Investigation 44 | . 1 . . . 8 . 6 . . . . 7 . 10 . 4 . 1 . . 5 . 2 Extermination 14 | . . . . . 4 . 3 . . . . 1 . 3 . . . . 1 . 2 . . Reinforcement 12 | . 1 . . . . . 3 . . . . 1 . . . 1 . 1 . . 1 1 3 Assault . | . . . . . . . . . . . . . . . . . . . . . . . . Garrison . | . . . . . . . . . . . . . . . . . . . . . . . . Intercept . | . . . . . . . . . . . . . . . . . . . . . . . . Searches Triggered 1 | . . . . . . . 1 . . . . . . . . . . . . . . . . Construction Impeded . | . . . . . . . . . . . . . . . . . . . . . . . . Haulers Reinforced 1 | . . . . . . . 1 . . . . . . . . . . . . . . . . Active Scanning Responses . | . . . . . . . . . . . . . . . . . . . . . . . . Cargo Convoy Interrupts . | . . . . . . . . . . . . . . . . . . . . . . . . Stealth | -11 -10 -10 -7 -7 -5 -5 -5 -5 -5 -5 -4 -4 -4 -4 -4 -4 -4 -3 -3 -3 -2 -2 -2 --------- Run | Yrd Mat Sub Rec Scr Fac Gar Fac Upp Upp Zhi Pro Fac Was Fac Gar Fac Gar Res Tes Gar Res Qua Frg Distress Signals 10 | . 2 . . . . . 2 . . . . 1 . 1 . 1 . . . . . . 3 Communications Jammed 35 | . . . . . . . . . . . . . . 4 . . . . 1 . . . 30 Distress Signals 35 | . . . . . . . . . . . . . . 4 . . . . 1 . . . 30 Times Spotted 336 | . 9 24 1 . 48 8 32 18 10 . 5 16 1 11 10 11 17 2 6 16 5 18 68 Peak Tracking Total 18 | . 4 9 1 . 10 10 10 11 5 . 5 11 1 9 10 6 12 2 4 8 4 5 18 Tactical Retreats 66 | . 1 8 . . 9 2 9 5 1 . 1 4 . 5 1 2 . . 1 4 4 2 7 ECM-based Alert Blocks 95 | . . . . . 33 . 17 . . . . 9 . 8 . 2 . . . 14 5 . 7 Traps | -11 -10 -10 -7 -7 -5 -5 -5 -5 -5 -5 -4 -4 -4 -4 -4 -4 -4 -3 -3 -3 -2 -2 -2 ------- Run | Yrd Mat Sub Rec Scr Fac Gar Fac Upp Upp Zhi Pro Fac Was Fac Gar Fac Gar Res Tes Gar Res Qua Frg Traps Triggered 19 | . . . . . 5 . 2 . . . . 1 . . 2 . 1 . 1 2 2 2 1 Indirectly . | . . . . . . . . . . . . . . . . . . . . . . . . Trap Hack Attempts 31 | . . . . . 11 . 20 . . . . . . . . . . . . . . . . Triggered . | . . . . . . . . . . . . . . . . . . . . . . . . Disarmed . | . . . . . . . . . . . . . . . . . . . . . . . . Reprogrammed 18 | . . . . . 3 . 3 . . . . . . 12 . . . . . . . . . Reused 6 | . . . . . 1 . . . . . . . . 5 . . . . . . . . . Traps Extracted 6 | . . . . . 3 . 3 . . . . . . . . . . . . . . . . Installed 1 | . . . . . 1 . . . . . . . . . . . . . . . . . . Triggered 6 | . . . . . 1 . . . . . . . . 5 . . . . . . . . . Most Traps Carried 5 | . . . . . 2 2 5 5 5 5 5 5 5 5 5 5 5 5 5 5 5 5 5 Machines | -11 -10 -10 -7 -7 -5 -5 -5 -5 -5 -5 -4 -4 -4 -4 -4 -4 -4 -3 -3 -3 -2 -2 -2 ---------- Run | Yrd Mat Sub Rec Scr Fac Gar Fac Upp Upp Zhi Pro Fac Was Fac Gar Fac Gar Res Tes Gar Res Qua Frg Machines Disabled 75 | . . 1 . . 6 1 2 . 1 . . . . 1 1 . 5 . 3 2 . 9 43 Max in Single Turn 43 | . . 1 . . 1 1 1 . 1 . . . . 1 1 . 2 . 1 1 . 1 43 Garrison Access 8 | . . . . . . . . . . . . 3 . 2 . 1 . . . . 1 1 . Garrison Relay 3 | . . . . . . 1 . . . . . . . . 1 . . . . 1 . . . Machines Repaired . | . . . . . . . . . . . . . . . . . . . . . . . . Machines Dismantled . | . . . . . . . . . . . . . . . . . . . . . . . . Machines Sabotaged . | . . . . . . . . . . . . . . . . . . . . . . . . Overloaded Fab Kills . | . . . . . . . . . . . . . . . . . . . . . . . . Hacking | -11 -10 -10 -7 -7 -5 -5 -5 -5 -5 -5 -4 -4 -4 -4 -4 -4 -4 -3 -3 -3 -2 -2 -2 --------- Run | Yrd Mat Sub Rec Scr Fac Gar Fac Upp Upp Zhi Pro Fac Was Fac Gar Fac Gar Res Tes Gar Res Qua Frg Machines Accessed 160 | . 8 3 9 3 18 1 16 . . 7 . 22 . 26 1 10 1 3 4 2 13 11 2 Terminals 73 | . 7 . 6 . 7 1 6 . . . . 8 . 12 1 4 1 2 2 2 6 8 . Fabricators 8 | . . . . . 2 . 1 . . . . 1 . 2 . . . . . . 2 . . Repair Stations 5 | . . . . . 1 . . . . . . 1 . 1 . . . . 1 . . 1 . Recycling Units 37 | . 1 . 3 . 5 . 4 . . . . 6 . 7 . 4 . 1 . . 4 . 2 Scanalyzers 10 | . . . . . 2 . 3 . . . . 3 . 1 . . . . . . . 1 . Garrison Access 14 | . . . . . 1 . 2 . . . . 3 . 3 . 2 . . 1 . 1 1 . Total Hacks 420 | . 27 4 23 12 52 4 37 . . 46 . 48 . 66 3 18 3 6 10 8 27 21 5 Successful 288 | . 18 4 11 12 24 3 22 . . 46 . 35 . 51 1 15 1 1 7 3 20 13 1 Failed 132 | . 9 . 12 . 28 1 15 . . . . 13 . 15 2 3 2 5 3 5 7 8 4 Catastrophic 11 | . 1 . 3 . 2 . 2 . . . . 1 . 1 . . . . . . . . 1 Database Lockouts . | . . . . . . . . . . . . . . . . . . . . . . . . Manual 242 | . 23 . 17 . 33 3 24 . 1 . . 25 . 47 . 14 1 6 7 4 21 11 5 Terminals 221 | . 26 . 19 . 27 4 17 . . . . 24 . 39 3 12 3 4 5 8 14 16 . Fabricators 22 | . . . . . 2 . 3 . . . . 2 . 7 . . . . . . 8 . . Repair Stations 9 | . . . . . 1 . . . . . . 1 . 3 . . . . 2 . . 2 . Recycling Units 51 | . 1 . 4 . 13 . 4 . . . . 6 . 8 . 4 . 2 . . 4 . 5 Scanalyzers 27 | . . . . . 6 . 7 . . . . 9 . 3 . . . . . . . 2 . Garrison Access 28 | . . . . . 3 . 6 . . . . 6 . 6 . 2 . . 3 . 1 1 . Terminal Hacks 114 | . 10 4 2 12 3 1 2 . . 46 . 8 . 12 1 3 1 . 1 3 2 3 . Record 48 | . . 1 . 11 . . . . . 34 . 2 . . . . . . . . . . . Part Schematic 11 | . 2 . . . . . 1 . . 4 . . . 3 . 1 . . . . . . . Robot Schematic 1 | . . . . . . . . . . . . 1 . . . . . . . . . . . Robot Analysis 8 | . 3 . . . 1 . . . . 4 . . . . . . . . . . . . . Prototype ID Bank 11 | . 3 . . . . . 1 . . 4 . 2 . 1 . . . . . . . . . Open Door 3 | . . 1 . . . . . . . . . . . . . . . . . . . 2 . Branch Access Points 1 | . . . . . . . . . . . . . . . . . . . . . 1 . . Emergency Access Points 3 | . . . . . . . . . . . . . . . 1 . 1 . . 1 . . . Terminal Index 7 | . 1 . 1 . . . . . . . . 1 . 1 . 1 . . 1 . 1 . . Repair Station Index 1 | . . . . . . . . . . . . . . 1 . . . . . . . . . Garrison Index 2 | . . . . . . . . . . . . . . 1 . 1 . . . . . . . Locate Traps 5 | . . . . . 1 . . . . . . 1 . 2 . . . . . . . 1 . Reprogram Traps 2 | . . . . . . . . . . . . . . 2 . . . . . . . . . Recall Investigation 1 | . 1 . . . . . . . . . . . . . . . . . . . . . . Recall Extermination 1 | . . . . . . . . . . . . . . 1 . . . . . . . . . Hauler Manifests 2 | . . . . . 1 . . . . . . 1 . . . . . . . . . . . Zone Layout 1 | . . . 1 . . . . . . . . . . . . . . . . . . . . Garrison Registry 2 | . . . . . . 1 . . . . . . . . . . . . . 1 . . . Patrol Navigation 1 | . . . . . . . . . . . . . . . . . . . . 1 . . . Proto ID Catalog 2 | . . 1 . 1 . . . . . . . . . . . . . . . . . . . Release Object 1 | . . 1 . . . . . . . . . . . . . . . . . . . . . Fabricator Hacks 11 | . . . . . 1 . 1 . . . . . . 5 . . . . . . 4 . . Network Status 3 | . . . . . . . 1 . . . . . . 1 . . . . . . 1 . . Load Schematic 4 | . . . . . . . . . . . . . . 2 . . . . . . 2 . . Build 4 | . . . . . 1 . . . . . . . . 2 . . . . . . 1 . . Repair Station Hacks 6 | . . . . . . . . . . . . . . 2 . . . . 2 . . 2 . Scan Component 3 | . . . . . . . . . . . . . . 1 . . . . 1 . . 1 . Repair 3 | . . . . . . . . . . . . . . 1 . . . . 1 . . 1 . Recycling Unit Hacks . | . . . . . . . . . . . . . . . . . . . . . . . . Scanalyzer 18 | . . . . . 5 . 4 . . . . 6 . 2 . . . . . . . 1 . Insert Component 7 | . . . . . 1 . 2 . . . . 2 . 1 . . . . . . . 1 . Analyze 6 | . . . . . 2 . 2 . . . . 1 . 1 . . . . . . . . . Retrieve Study 5 | . . . . . 2 . . . . . . 3 . . . . . . . . . . . Garrison Access Hacks 15 | . . . . . 1 . 1 . . . . 5 . 3 . 2 . . 1 . 1 1 . Unlock Access 6 | . . . . . 1 . 1 . . . . 1 . 1 . 1 . . 1 . . . . Seal Access 8 | . . . . . . . . . . . . 3 . 2 . 1 . . . . 1 1 . Coupler Status 1 | . . . . . . . . . . . . 1 . . . . . . . . . . . Unauthorized Hacks 124 | . 8 . 9 . 14 2 14 . . . . 16 . 27 . 10 . 1 3 . 13 6 1 Terminals 76 | . 7 . 6 . 9 2 6 . . . . 8 . 15 . 6 . . 3 . 8 6 . Track 2 | . . . . . . 1 . . . . . . . 1 . . . . . . . . . Assimilate 4 | . . . . . 1 . 1 . . . . . . 1 . . . . 1 . . . . Botnet 25 | . 2 . 2 . 2 . 1 . . . . 3 . 8 . 2 . . 1 . 3 1 . Skim 44 | . 5 . 4 . 6 . 4 . . . . 5 . 5 . 4 . . 1 . 5 5 . Override 1 | . . . . . . 1 . . . . . . . . . . . . . . . . . Fabricators 5 | . . . . . . . 2 . . . . . . 2 . . . . . . 1 . . Report 1 | . . . . . . . 1 . . . . . . . . . . . . . . . . Prioritize 1 | . . . . . . . . . . . . . . 1 . . . . . . . . . Haulers 1 | . . . . . . . 1 . . . . . . . . . . . . . . . . Recompile 2 | . . . . . . . . . . . . . . 1 . . . . . . 1 . . Repair Stations 3 | . . . . . 1 . . . . . . 1 . 1 . . . . . . . . . Patch 3 | . . . . . 1 . . . . . . 1 . 1 . . . . . . . . . Recycling Units 35 | . 1 . 3 . 4 . 4 . . . . 6 . 7 . 4 . 1 . . 4 . 1 Tunnel 4 | . 1 . 3 . . . . . . . . . . . . . . . . . . . . Fedlink 31 | . . . . . 4 . 4 . . . . 6 . 7 . 4 . 1 . . 4 . 1 Scanalyzers . | . . . . . . . . . . . . . . . . . . . . . . . . Garrison Access 5 | . . . . . . . 2 . . . . 1 . 2 . . . . . . . . . Broadcast 2 | . . . . . . . 1 . . . . 1 . . . . . . . . . . . Reprogram 1 | . . . . . . . . . . . . . . 1 . . . . . . . . . Intercept 1 | . . . . . . . . . . . . . . 1 . . . . . . . . . Watchers 1 | . . . . . . . 1 . . . . . . . . . . . . . . . . Data Cores Recovered 4 | . . . . . . . . . . . . 1 . 1 . . . 1 . . . 1 . Used 1 | . . . . . . . . . . . . 1 . . . . . . . . . . . Hacking Detections 97 | . 7 . 7 . 14 . 12 . . . . 12 . 14 1 3 1 3 3 2 7 10 1 Full Trace Events 10 | . . . 2 . 3 . 1 . . . . . . . 1 . 1 . . 1 . . 1 Feedback Events . | . . . . . . . . . . . . . . . . . . . . . . . . Feedback Blocked . | . . . . . . . . . . . . . . . . . . . . . . . . Robot Schematics Acquired 1 | . . . . . . . . . . . . 1 . . . . . . . . . . . Robots Built 1 | . . . . . . . . . . . . . . 1 . . . . . . . . . Authchips . | . . . . . . . . . . . . . . . . . . . . . . . . Time 46 | . . . . . . . . . . . . . . 46 . . . . . . . . . Total Robot Build Rating 7 | . . . . . . . . . . . . . . 7 . . . . . . . . . Part Schematics Acquired 45 | . 2 . . . 14 1 9 4 . 5 . 4 . 4 . 1 . . . . . . 1 Parts Built 4 | . . . . . 2 . . . . . . . . 1 . . . . . . 1 . . Authchips 2 | . . . . . . . . . . . . . . 1 . . . . . . 1 . . Time 206 | . . . . . 106 . . . . . . . . 38 . . . . . . 62 . . Total Part Build Rating 24 | . . . . . 12 . . . . . . . . 5 . . . . . . 7 . . Part Studies Acquired 5 | . . . . . 2 . . . . . . 3 . . . . . . . . . . . Parts Repaired 3 | . . . . . . . . . . . . . . 1 . . . . 1 . . 1 . Time 225 | . . . . . . . . . . . . . . 89 . . . . 56 . . 80 . Parts Recycled . | . . . . . . . . . . . . . . . . . . . . . . . . Recycled Matter . | . . . . . . . . . . . . . . . . . . . . . . . . Retrieved Matter . | . . . . . . . . . . . . . . . . . . . . . . . . Retrieved Components . | . . . . . . . . . . . . . . . . . . . . . . . . Parts Scanalyzed 4 | . . . . . 1 . 1 . . . . 1 . 1 . . . . . . . . . Part Schematics Acquired 4 | . . . . . 1 . 1 . . . . 1 . 1 . . . . . . . . . Parts Damaged . | . . . . . . . . . . . . . . . . . . . . . . . . Bothacking | -11 -10 -10 -7 -7 -5 -5 -5 -5 -5 -5 -4 -4 -4 -4 -4 -4 -4 -3 -3 -3 -2 -2 -2 ------------ Run | Yrd Mat Sub Rec Scr Fac Gar Fac Upp Upp Zhi Pro Fac Was Fac Gar Fac Gar Res Tes Gar Res Qua Frg Used RIF Installer 4 | . . . . . . 1 . . . . . . . . 1 . 1 . . 1 . . . Code Merge 1 | . . . . . . . . . . . . . . . . . . . . 1 . . . Signal Jammer 1 | . . . . . . . . . . . . . . . . . 1 . . . . . . Watcher Feeds 1 | . . . . . . . . . . . . . . . 1 . . . . . . . . Robots Hacked 3 | . . . . . . . . . . . . 2 . . . . 1 . . . . . . Non-combat 3 | . . . . . . . . . . . . 2 . . . . 1 . . . . . . Combat . | . . . . . . . . . . . . . . . . . . . . . . . . Robot Hacks Applied 3 | . . . . . . . . . . . . 2 . . . . 1 . . . . . . find_chute 2 | . . . . . . . . . . . . 2 . . . . . . . . . . . formatsys_low 1 | . . . . . . . . . . . . . . . . . 1 . . . . . . Relay Couplers Released 13 | . . . . . . 4 . . . . . . . . 5 . . . . 4 . . . Machine Destruction 13 | . . . . . . 4 . . . . . . . . 5 . . . . 4 . . . Attached 2 | . . . . . . . . . . . . . . . . 1 . . . . . . 1 Merged Code Value 9 | . . . . . . . . . . . . . . . . . . . . 9 . . . Fabnet Peak Effective % . | . . . . . . . . . . . . . . . . . . . . . . . . Robots Rewired 6 | . . . . . . . . . . . . . . . . . 6 . . . . . . Allies Hacked 2 | . . . . . . . . . . . . . . . . . 1 . 1 . . . . Hacks Repelled . | . . . . . . . . . . . . . . . . . . . . . . . . Allies | -11 -10 -10 -7 -7 -5 -5 -5 -5 -5 -5 -4 -4 -4 -4 -4 -4 -4 -3 -3 -3 -2 -2 -2 -------- Run | Yrd Mat Sub Rec Scr Fac Gar Fac Upp Upp Zhi Pro Fac Was Fac Gar Fac Gar Res Tes Gar Res Qua Frg Total Allies 15 | . . . . . . . 1 . . . . . . 4 . . 9 . 1 . . . . Largest Group 9 | . . . . . . . 1 . . . . . . 3 3 . 9 . 1 . . . . Highest-Rated Group 403 | . . . . . . . 26 . . . . . . 141 141 . 403 . 45 . . . . Highest-Rated Ally 95 | . . . . . . . 26 . . . . . . 47 47 . 95 . 45 . . . . Initial UFD Resources 148 | . . . . . 39 57 57 65 65 65 69 69 91 91 105 105 113 116 126 126 130 148 148 Total Orders . | . . . . . . . . . . . . . . . . . . . . . . . . Ally Attacks 39 | . . . . . . . . . . . . . . . 13 . 26 . . . . . . Total Damage 766 | . . . . . . . . . . . . . . . 333 . 433 . . . . . . Kills 5 | . . . . . . . . . . . . . . . 3 . 2 . . . . . . Allies Corrupted 1 | . . . . . . . . . . . . . . . . . . . 1 . . . . Allies Melted . | . . . . . . . . . . . . . . . . . . . . . . . . Intel | -11 -10 -10 -7 -7 -5 -5 -5 -5 -5 -5 -4 -4 -4 -4 -4 -4 -4 -3 -3 -3 -2 -2 -2 ------- Run | Yrd Mat Sub Rec Scr Fac Gar Fac Upp Upp Zhi Pro Fac Was Fac Gar Fac Gar Res Tes Gar Res Qua Frg Active Infowar (turns) 11313 | 6 581 2156 . . 1055 . 703 443 46 55 34 495 8 741 92 333 6 78 239 156 531 3380 175 Sensors 7765 | . . . . . 860 . 667 390 44 52 34 482 8 629 2 317 6 72 237 5 529 3371 60 Structural 4777 | . . . . . 783 . 435 443 46 55 34 414 8 533 . 255 4 78 232 3 530 856 68 Traps 2 | . . . . . . . . . 2 . . . . . . . . . . . . . . Seismic 2743 | 6 581 2156 . . . . . . . . . . . . . . . . . . . . . Cloaking 4264 | . . . . . . . . . . . . 17 . . 90 11 . 5 . 113 513 3340 175 Jamming 558 | . . . . . . . . . . . . 11 . 402 . 24 . . . 41 17 . 63 ECM 1567 | . . . . . 509 . 168 . . . . 167 . 187 . 56 . . 2 125 244 69 40 Robot Analysis Total 8 | . 3 . . . 1 . . . . 4 . . . . . . . . . . . . . Derelict Logs Recovered 7 | . . 1 . 4 . . . 1 1 . . . . . . . . . . . . . . Drone Launches . | . . . . . . . . . . . . . . . . . . . . . . . . Drone Recoveries . | . . . . . . . . . . . . . . . . . . . . . . . . Exploration | -11 -10 -10 -7 -7 -5 -5 -5 -5 -5 -5 -4 -4 -4 -4 -4 -4 -4 -3 -3 -3 -2 -2 -2 ------------- Run | Yrd Mat Sub Rec Scr Fac Gar Fac Upp Upp Zhi Pro Fac Was Fac Gar Fac Gar Res Tes Gar Res Qua Frg Turns Passed 16133 | 68 581 2566 1009 2554 1245 70 717 454 46 55 34 495 8 741 92 333 110 79 239 166 537 3380 554 Spaces Moved 19005 | 52 364 1427 391 1018 2509 176 1776 788 159 170 164 1565 61 1768 242 839 259 157 646 323 950 2166 1035 Core 16 | 16 . . . . . . . . . . . . . . . . . . . . . . . Treads 1576 | . . 144 391 1018 23 . . . . . . . . . . . . . . . . . . Legs 5 | . . . . . . . . . . . . . . . . . . . . . . . 5 Wheels 1683 | 36 364 1283 . . . . . . . . . . . . . . . . . . . . . Hover . | . . . . . . . . . . . . . . . . . . . . . . . . Flight 15725 | . . . . . 2486 176 1776 788 159 170 164 1565 61 1768 242 839 259 157 646 323 950 2166 1030 Fastest Speed 5 | 50 100 130 250 250 20 5 20 5 5 20 5 5 6 17 5 5 5 14 14 5 5 5 5 Average Speed 49 | 84 111 155 250 250 26 19 20 19 17 20 18 16 13 20 16 23 13 14 14 13 15 16 28 Slowest Speed 250 | 100 130 250 250 250 250 20 20 20 20 20 20 17 17 24 17 24 17 14 14 17 87 87 180 Overloaded Moves 269 | . . . . . . 8 . 28 27 . 11 19 22 . 12 3 14 . . 20 16 13 76 Propulsion Burnouts . | . . . . . . . . . . . . . . . . . . . . . . . . Robots Hopped 83 | . . . . . 7 3 11 1 1 . . 5 . 9 . 8 . 4 5 5 . 3 21 Potential Cave-ins . | . . . . . . . . . . . . . . . . . . . . . . . . Cave-ins Triggered . | . . . . . . . . . . . . . . . . . . . . . . . . Teleports 2 | . . . . . . . . . . . . . . . . . . . . . . 1 1 Exploration Rate (%) 50 | 4 74 80 74 83 65 35 39 46 25 62 37 50 71 52 35 26 38 6 87 44 41 98 44 Regions Visited 23 Branch Regions 10 Pre-discovered Areas 15 | . 1 1 3 . 1 . . . . 3 . 1 . 3 . . . . . . 2 . . Known Exits Taken 13 | . 1 . . 1 1 . 1 1 . 1 1 . . 1 . 1 . 1 1 . 1 1 . Unknown Exits Taken 4 | 1 . 1 1 . . . . . 1 . . . . . . . . . . . . . . Scrap Searched 20 | . . 8 . 3 . . . 4 1 . 4 . . . . . . . . . . . . Spaces Dug 315 | . 6 15 . . 97 1 40 . 3 . . 34 . 23 5 19 1 3 7 9 36 13 3 Terrain Destroyed 573 | . 7 25 . . 112 1 40 . 3 . . 34 . 23 5 19 19 3 7 9 36 13 217 Melee 233 | . . . . . 51 1 40 . 3 . . 34 . 23 5 19 1 3 5 7 25 13 3 Projectile 32 | . 7 10 . . . . . . . . . . . . . . . . 2 2 11 . . AOE 307 | . . 15 . . 61 . . . . . . . . . . . 18 . . . . . 213 Terrain Rammed . | . . . . . . . . . . . . . . . . . . . . . . . . Walls Destroyed . | . . . . . . . . . . . . . . . . . . . . . . . . Machines Disabled . | . . . . . . . . . . . . . . . . . . . . . . . . Actions | -11 -10 -10 -7 -7 -5 -5 -5 -5 -5 -5 -4 -4 -4 -4 -4 -4 -4 -3 -3 -3 -2 -2 -2 --------- Run | Yrd Mat Sub Rec Scr Fac Gar Fac Upp Upp Zhi Pro Fac Was Fac Gar Fac Gar Res Tes Gar Res Qua Frg Total 24705 | 66 483 1649 413 1027 2939 200 2015 1043 169 190 166 1717 60 2081 281 928 320 201 761 415 1255 5096 1230 Wait 4574 | . 80 89 11 2 235 21 135 197 1 . 3 89 . 247 20 56 28 37 68 72 216 2836 131 Move 18826 | 51 363 1426 390 1017 2495 169 1753 785 157 169 163 1555 60 1749 241 824 258 149 635 313 949 2159 996 Hop 76 | . . . . . 7 3 11 1 . . . 5 . 9 . 7 . 3 5 4 . 3 18 Pick Up 79 | 4 7 11 1 5 12 1 3 2 1 3 . 3 . 6 . 2 1 . 1 1 3 7 5 Fast Attach 91 | 7 . 3 1 . 26 . 7 4 . 3 . 1 . 1 . . . . 9 . 2 16 11 Attach 61 | . . 8 . . 12 1 . 2 2 2 . 2 . 3 . . 2 4 2 . 3 8 10 Detach 22 | . . 2 . . 1 . 1 1 . 1 . . . . . . . 2 4 . . 6 4 Swap 174 | 1 9 20 1 3 18 . 13 4 2 6 . 10 . 22 2 14 4 1 14 6 18 5 1 Drop 107 | . 2 17 2 . 14 1 6 5 2 6 . 3 . 7 . 2 1 . 8 . 2 17 12 Fire 199 | 3 22 73 2 . 8 . . 38 . . . . . . . . 1 1 2 2 11 2 34 Melee 418 | . . . . . 97 4 66 4 4 . . 49 . 37 7 23 20 4 13 12 36 37 5 Ram . | . . . . . . . . . . . . . . . . . . . . . . . . Kick . | . . . . . . . . . . . . . . . . . . . . . . . . Crush 7 | . . . 5 . 2 . . . . . . . . . . . . . . . . . . Escape Stasis 37 | . . . . . . . . . . . . . . . 11 . 3 . . 5 15 . 3 Rewire 2 | . . . . . . . . . . . . . . . . . 2 . . . . . . Trap 32 | . . . . . 12 . 20 . . . . . . . . . . . . . . . . Miscellaneous . | . . . . . . . . . . . . . . . . . . . . . . . . Route ------- -11/Scrapyard -10/Materials (discovered 5 exits: *Mat x3 / *Min / *Sub) -10/Subcaves (discovered 3 exits: [*Mat] / *Rec / *Scr) -7/Recycling (discovered 2 exits: *Fac / *Scr) -7/Scraptown (discovered 2 exits: *Fac x2) -5/Factory (discovered 5 exits: *Fac x2 / *Upp x2 / Gar) -5/Garrison (discovered 3 exits: *Fac x3) -5/Factory (discovered 3 exits: *Fac / *Upp / Gar) -5/Upper Caves -5/Upper Caves -5/Zhirov -4/Proximity Caves -4/Factory (discovered 4 exits: Res x2 / Upp x2) -4/Waste -4/Factory (discovered 7 exits: *Res x4 / *Upp x2 / Gar) -4/Garrison -4/Factory (discovered 3 exits: *Res / *Upp / Gar) -4/Garrison -3/Research (discovered 5 exits: Res x2 / Arm / *Tes x2) -3/Testing (discovered 2 exits: *Res / Gar) -3/Garrison (discovered 3 exits: *Res x3) -2/Research (discovered 4 exits: Acc x2 / *Qua x2) -2/Quarantine (discovered 3 exits: *Acc / *Sec / *Frg) -2/Protoforge (discovered 1 exit: Acc) History --------- Turn | Location | Event 7 | -11/Scrapyard | Discovered new exit (range 14) 69 | -11/Scrapyard | Entered Materials 220 | -10/Materials | Discovered new exit (range 7) 318 | -10/Materials | Build established: Mutant 410 | -10/Materials | Discovered new exit (range 9) 446 | -10/Materials | Identified exit to Subcaves 446 | -10/Materials | Identified exit to Materials 520 | -10/Materials | Loaded intel: 1 repair station location 542 | -10/Materials | Identified exit to Mines 553 | -10/Materials | Learned location of 1 exit from Recycling 554 | -10/Materials | Learned Storage trap positions 563 | -10/Materials | Learned location of 2 exits from Mines 566 | -10/Materials | Discovered exit to Materials (range 16) 580 | -10/Materials | Learned Storage security intel 606 | -10/Materials | Loaded intel: 23 trap records 650 | -10/Materials | Entered Subcaves 651 | -10/Subcaves | Approached by a straggling Scientist 653 | -10/Subcaves | Shifting Twisted Machinery released Sub. Laser 729 | -10/Subcaves | Shifting Twisted Machinery released Battle Cannon 1195 | -10/Subcaves | Shifting Twisted Machinery released Spk. Treads 1203 | -10/Subcaves | Shifting Twisted Machinery released Riot Gun 1260 | -10/Subcaves | Discovered new exit (range 15) 1620 | -10/Subcaves | Learned 2 Materials zone layouts 1713 | -10/Subcaves | Shifting Twisted Machinery released Sub. Shrapnel Launcher 1769 | -10/Subcaves | Build established: Scavenger-Mutant 1816 | -10/Subcaves | Disturbed a concealed Subdweller 1978 | -10/Subcaves | Learned location of Zion (-7) 1978 | -10/Subcaves | Met a Zionite searching for "candidates" 2061 | -10/Subcaves | Visited 4L-MR0's lab 2078 | -10/Subcaves | Found Power Bank 2781 | -10/Subcaves | Core integrity fell below 50% 2830 | -10/Subcaves | Destroyed 7 combat bots 2947 | -10/Subcaves | Discovered new exit (range 15) 3067 | -10/Subcaves | Attached Power Bank, gained temporary slots: Power x3 3095 | -10/Subcaves | Build established: Mutant 3140 | -10/Subcaves | Found SUBCON Basin 3216 | -10/Subcaves | Entered Recycling 3217 | -7/Recycling | Identified exit to Factory 3536 | -7/Recycling | Build established: Scavenger-Mutant 4142 | -7/Recycling | Scanned before Scraplab entrance 4177 | -7/Recycling | Entered Scraplab 4220 | -7/Recycling | Discovered new exit (range 3) 4225 | -7/Recycling | Entered Scraptown 4313 | -7/Scraptown | Visited The Evicted 4333 | -7/Scraptown | Visited TADAMA 4358 | -7/Scraptown | Visited Comm Corps 4418 | -7/Scraptown | Scanned Subdweller tech in exchange for log data 4423 | -7/Scraptown | Learned Research non-interactive machine intel 4428 | -7/Scraptown | Learned location of 1 exit from Proximity Caves 4430 | -7/Scraptown | Learned Research terminal intel 4518 | -7/Scraptown | Visited CPS Storage 4571 | -7/Scraptown | Visited UFD Registry 4571 | -7/Scraptown | Registered with UFD as "Fiberplate" 4614 | -7/Scraptown | Visited Shadow of the Wyrm 4654 | -7/Scraptown | Visited Cyclists 4691 | -7/Scraptown | Entered Cyclist Reading Room 5362 | -7/Scraptown | Discovered exit to Factory (range 13) 5407 | -7/Scraptown | Guru changed UFD alias to "Gearshell" 5689 | -7/Scraptown | Visited Symbiants 5789 | -7/Scraptown | Visited Curators Association 5859 | -7/Scraptown | Visited Chapter 10 5929 | -7/Scraptown | Visited Supply Room 5984 | -7/Scraptown | Visited Junk Repository 6184 | -7/Scraptown | Visited Scrap Suit Storage 6217 | -7/Scraptown | Visited Science Testing Area 6277 | -7/Scraptown | Visited Junk Repository 6322 | -7/Scraptown | Visited Science Guys 6407 | -7/Scraptown | Visited Scrapoid Pod Storage 6634 | -7/Scraptown | Met Optimus 6634 | -7/Scraptown | Accepted into 0bPrime 6774 | -7/Scraptown | Discovered exit to Factory (range 3) 6779 | -7/Scraptown | Entered Factory 6779 | -5/Factory | Evolved 10 slots: Power x1, Propulsion x5, Utility x4 6856 | -5/Factory | Released all parts (9) 6872 | -5/Factory | Spotted B-75 Beast 7120 | -5/Factory | Tech Extrapolator generated special schematic: Deep Structural Scanner 7132 | -5/Factory | Fabricated Adv. Shield Generator? 7253 | -5/Factory | Discovered new exit (range 15) 7268 | -5/Factory | Identified exit to Factory 7462 | -5/Factory | Discovered exit to Factory (range 10) 7653 | -5/Factory | Loaded intel: 8 recycling unit locations 7677 | -5/Factory | Learned location of Protoforge (-2) 7752 | -5/Factory | Discovered new exit (range 3) 7752 | -5/Factory | Identified exit to Upper Caves 7781 | -5/Factory | Discovered exit to Upper Caves (range 7) 7889 | -5/Factory | Learned location of 2 exits from Research 7948 | -5/Factory | Identified exit to Garrison 7992 | -5/Factory | Learned Research scanalyzer intel 8024 | -5/Factory | Entered Garrison 8026 | -5/Garrison | Triggered checkpoint 8057 | -5/Garrison | Garrison Relay disabled 8062 | -5/Garrison | Tech Extrapolator generated special schematic: Machine Rigger 8076 | -5/Garrison | Discovered new exit (range 32) 8076 | -5/Garrison | Discovered new exit (range 74) 8076 | -5/Garrison | Discovered new exit (range 64) 8076 | -5/Garrison | Identified exit to Factory 8081 | -5/Garrison | Spotted B-75 Beast 8088 | -5/Garrison | Installed Relay Interface Framework 8094 | -5/Garrison | Entered Factory 8326 | -5/Factory | Loaded intel: 8 recycling unit locations 8513 | -5/Factory | Identified exit to Garrison 8571 | -5/Factory | Discovered exit to Factory (range 12) 8694 | -5/Factory | Search patrols dispatched 8784 | -5/Factory | Discovered exit to Upper Caves (range 7) 8811 | -5/Factory | Entered Upper Caves 8812 | -5/Upper Caves | Learned 8 Factory zone layouts 9178 | -5/Upper Caves | Build established: Scout 9229 | -5/Upper Caves | Spotted B-75 Beast 9258 | -5/Upper Caves | Discovered new exit (range 6) 9259 | -5/Upper Caves | Identified exit to Upper Caves 9265 | -5/Upper Caves | Entered another Upper Caves area 9272 | -5/Upper Caves | Acquired the password to a Derelict Tinkerer's latest research 9277 | -5/Upper Caves | Found Prototype Special Weapon 9283 | -5/Upper Caves | Learned 4 Factory zone layouts 9310 | -5/Upper Caves | Discovered new exit (range 6) 9311 | -5/Upper Caves | Entered Zhirov 9311 | -5/Zhirov | Discovered new exit (range 3) 9312 | -5/Zhirov | Identified exit to Proximity Caves 9315 | -5/Zhirov | Met Zhirov 9319 | -5/Zhirov | Learned location of Testing (-3) 9319 | -5/Zhirov | Learned location of Command (-1) 9323 | -5/Zhirov | Zhirov requested help retrieving the SGEMP Prototype 9326 | -5/Zhirov | Found Alien Artifact 9326 | -5/Zhirov | Identified Integrated Reactor 9326 | -5/Zhirov | Installed Integrated Reactor, increased core energy generation (+10) 9342 | -5/Zhirov | Identified Molecular Deconstructor 9349 | -5/Zhirov | Found Alien Artifact 9366 | -5/Zhirov | Entered Proximity Caves 9369 | -4/Proximity Caves | Spotted B-86 Titan 9400 | -4/Proximity Caves | Entered Factory 9400 | -4/Factory | Evolved 2 slots: Propulsion x1, Utility x1 9401 | -4/Factory | Identified exit to Research 9402 | -4/Factory | Identified exit to Upper Caves 9490 | -4/Factory | Identified exit to Garrison 9507 | -4/Factory | Watched by a mysterious "MATRIX" hacker. 9542 | -4/Factory | Loaded intel: 8 recycling unit locations 9549 | -4/Factory | Learned 12 Research zone layouts 9645 | -4/Factory | Learned 4 Upper Caves zone layouts 9701 | -4/Factory | Learned Testing scanalyzer intel 9728 | -4/Factory | Identified Transdimensional Reconstructor 9763 | -4/Factory | Learned location of 1 exit from Testing 9895 | -4/Factory | Manually triggered Chute Trap 9895 | -4/Factory | Sucked down chute 9895 | -4/Factory | Entered Waste 9897 | -4/Waste | Spotted C-40 Crusher 9899 | -4/Waste | Spotted C-40 Crusher 9900 | -4/Waste | Spotted C-40 Crusher 9901 | -4/Waste | Spotted C-40 Crusher 9902 | -4/Waste | Discovered new exit (range 10) 9903 | -4/Waste | Identified exit to Factory 9903 | -4/Waste | Entered Factory 9922 | -4/Factory | Loaded intel: 8 recycling unit locations 10082 | -4/Factory | Spotted B-86 Titan 10163 | -4/Factory | Learned location of Warlord (-4) 10234 | -4/Factory | Learned location of 1 exit from Research 10234 | -4/Factory | Discovered exit to Upper Caves (range 8) 10362 | -4/Factory | Fabricated O-32 Director (x1) 10385 | -4/Factory | Found Prototype Hackware 10385 | -4/Factory | Identified Exp. Hacking Suite 10401 | -4/Factory | Fabricated Exp. Propulsion Shielding? 10479 | -4/Factory | Identified exit to Garrison 10511 | -4/Factory | Learned location of 1 exit from Armory 10590 | -4/Factory | Repaired Cld. Nuclear Pulse Thruster? 10644 | -4/Factory | Entered Garrison 10644 | -4/Garrison | Accompanied by 3 allies 10661 | -4/Garrison | Expanded RIF knowledge: Watcher Feeds 10678 | -4/Garrison | Triggered checkpoint 10701 | -4/Garrison | Spotted B-86 Titan 10704 | -4/Garrison | Triggered checkpoint 10712 | -4/Garrison | Triggered checkpoint 10715 | -4/Garrison | Garrison Relay disabled 10733 | -4/Garrison | Discovered new exit (range 15) 10735 | -4/Garrison | Identified exit to Factory 10736 | -4/Garrison | Entered Factory 10754 | -4/Factory | Loaded intel: 8 recycling unit locations 10768 | -4/Factory | Discovered exit to Upper Caves (range 9) 10819 | -4/Factory | Discovered exit to Research (range 16) 11069 | -4/Factory | Identified exit to Garrison 11069 | -4/Factory | Entered Garrison 11089 | -4/Garrison | Found embedded Infiltrators 11119 | -4/Garrison | H-XX Assembler disabled 11158 | -4/Garrison | Spotted B-86 Titan 11160 | -4/Garrison | Triggered checkpoint 11160 | -4/Garrison | Triggered checkpoint 11173 | -4/Garrison | Expanded RIF knowledge: Signal Jamming 11175 | -4/Garrison | Discovered exit to Research (range 12) 11179 | -4/Garrison | Entered Research 11179 | -3/Research | Evolved 2 slots: Utility x2 11180 | -3/Research | Identified exit to Testing 11181 | -3/Research | Identified exit to Armory 11181 | -3/Research | Identified exit to Research 11183 | -3/Research | Loaded intel: 65 non-interactive machine locations 11184 | -3/Research | Loaded intel: 21 terminal locations 11185 | -3/Research | Loaded intel: 6 scanalyzer locations 11203 | -3/Research | Lost 3 allies 11247 | -3/Research | Loaded intel: 5 recycling unit locations 11258 | -3/Research | Entered Testing 11260 | -3/Testing | Loaded intel: 3 scanalyzer locations 11268 | -3/Testing | Found Prototype Energy Cannon 11268 | -3/Testing | Identified Null Cannon 11274 | -3/Testing | Found Prototype Device 11274 | -3/Testing | Identified Exp. Focal Shield 11288 | -3/Testing | Spotted PY-YMEYK2XIM2 11298 | -3/Testing | Found Prototype Energy Cannon 11298 | -3/Testing | Identified Disintegrator 11336 | -3/Testing | Found Prototype Processor 11336 | -3/Testing | Identified Exp. Melee Analysis Suite 11341 | -3/Testing | Found Prototype Device 11341 | -3/Testing | Identified Exp. ECM Suite 11400 | -3/Testing | Found Prototype Ballistic Gun 11400 | -3/Testing | Identified Hyp. Multirail 11440 | -3/Testing | Repaired Nuclear Pulse Array+ 11447 | -3/Testing | Spotted Striker 11469 | -3/Testing | Build established: Hacker-Scout 11496 | -3/Testing | Identified exit to Garrison 11497 | -3/Testing | Entered Garrison 11523 | -3/Garrison | Triggered checkpoint 11602 | -3/Garrison | Spotted B-86 Titan 11603 | -3/Garrison | Triggered checkpoint 11613 | -3/Garrison | Discovered exit to Research (range 69) 11613 | -3/Garrison | Discovered exit to Research (range 66) 11613 | -3/Garrison | Discovered exit to Research (range 27) 11623 | -3/Garrison | Triggered checkpoint 11643 | -3/Garrison | Expanded RIF knowledge: Code Merge 11645 | -3/Garrison | Garrison Relay disabled 11659 | -3/Garrison | Spotted B-86 Titan 11659 | -3/Garrison | Found Relay Coupler [Proto] 11663 | -3/Garrison | Entered Research 11663 | -2/Research | Evolved 2 slots: Power x1, Utility x1 11837 | -2/Research | Targeted by mysterious "MATRIX" hacker. 11922 | -2/Research | Loaded intel: 5 recycling unit locations 11934 | -2/Research | Build established: Hacker-Ninja 12012 | -2/Research | Fabricated Exp. Signal Interpreter? 12034 | -2/Research | Identified exit to Quarantine 12085 | -2/Research | Identified exit to Access 12142 | -2/Research | Loaded intel: 60 trap records 12190 | -2/Research | Learned 4 Access zone layouts 12200 | -2/Research | Entered Quarantine 12224 | -2/Quarantine | Cryocooling Duct disabled 12239 | -2/Quarantine | Ambient heat levels rising (+20) 12239 | -2/Quarantine | Non-combat units ordered to evacuate 12308 | -2/Quarantine | Cryocooling Duct disabled 12312 | -2/Quarantine | Cryocooling Duct disabled 12316 | -2/Quarantine | Repaired Exp. Propulsion Shielding? 12323 | -2/Quarantine | Ambient heat levels rising (+20) 12323 | -2/Quarantine | Combat units ordered to evacuate 12327 | -2/Quarantine | Ambient heat levels rising (+20) 12366 | -2/Quarantine | Spotted Alpha 7 12423 | -2/Quarantine | Quarantine Guard activated 12451 | -2/Quarantine | Cryocooling Duct disabled 12466 | -2/Quarantine | Ambient heat levels rising (+20) 12488 | -2/Quarantine | Found Alien Artifact 12488 | -2/Quarantine | Identified Dimensional Node Initializer 12488 | -2/Quarantine | Initialized slip node 12489 | -2/Quarantine | Found Dimensional Node Initializer 12509 | -2/Quarantine | Identified exit to Section 7 12509 | -2/Quarantine | Identified exit to Protoforge 12520 | -2/Quarantine | Spotted Quarantine Guard 12532 | -2/Quarantine | Spotted Quarantine Guard 12549 | -2/Quarantine | Learned 4 Section 7 zone layouts 12581 | -2/Quarantine | Learned Research terminal intel 12609 | -2/Quarantine | Learned Research security intel 12610 | -2/Quarantine | Learned Research trap positions 12642 | -2/Quarantine | Learned location of 3 exits from Research 12645 | -2/Quarantine | Spotted Quarantine Guard 12683 | -2/Quarantine | Build established: Hacker-Sprinter 12705 | -2/Quarantine | Spotted Quarantine Guard 12712 | -2/Quarantine | Found Alien Artifact 12713 | -2/Quarantine | Identified Subatomic Replicator 12713 | -2/Quarantine | Used Subatomic Replicator to create Alien Artifact 12722 | -2/Quarantine | Identified Supercharged TR 13738 | -2/Quarantine | Spotted Quarantine Guard 14941 | -2/Quarantine | Met incapacitated Sigix Warrior 14941 | -2/Quarantine | Lockdown squad dispatched 14947 | -2/Quarantine | Found Alien Artifact 14947 | -2/Quarantine | Identified Hpw. Transdimensional Reconstructor 14947 | -2/Quarantine | Warped through subspace to slip node 14952 | -2/Quarantine | Found Hpw. Transdimensional Reconstructor 14982 | -2/Quarantine | Found Alien Launcher 14984 | -2/Quarantine | Identified Sigix Terminator 14997 | -2/Quarantine | Found Alien Artifact 14997 | -2/Quarantine | Identified Phase Armor 15553 | -2/Quarantine | Spotted Fortress 15577 | -2/Quarantine | Spotted Quarantine Guard 15577 | -2/Quarantine | Spotted Quarantine Guard 15580 | -2/Quarantine | Entered Protoforge 15614 | -2/Protoforge | Superfortress began startup sequence 15614 | -2/Protoforge | Spotted Hotshot 15616 | -2/Protoforge | Spotted Hotshot 15617 | -2/Protoforge | Spotted Hotshot 15632 | -2/Protoforge | Spotted AP7-3 15639 | -2/Protoforge | Spotted AP7-3 15641 | -2/Protoforge | Spotted Overlord 15641 | -2/Protoforge | Spotted EXE-6 15641 | -2/Protoforge | Spotted EXE-6 15644 | -2/Protoforge | Spotted SKR-2 15644 | -2/Protoforge | Spotted SKR-2 15644 | -2/Protoforge | Spotted SKR-2 15654 | -2/Protoforge | UFD initiated attack on Protoforge (Readiness: Maximal) 15654 | -2/Protoforge | Loaded intel: 3 recycling unit locations 15677 | -2/Protoforge | Lost 4 parts (1p1n2u) 15712 | -2/Protoforge | Fired Sigix Terminator 15712 | -2/Protoforge | Destroyed SKR-2 15712 | -2/Protoforge | Destroyed SKR-2 15712 | -2/Protoforge | Destroyed SKR-2 15713 | -2/Protoforge | Core integrity fell below 50% 15717 | -2/Protoforge | Optimus greeted in Protoforge 15735 | -2/Protoforge | Initialized slip node 15757 | -2/Protoforge | Warped through subspace to slip node 15759 | -2/Protoforge | Core integrity fell below 20% 15760 | -2/Protoforge | Spotted Hotshot 15772 | -2/Protoforge | Optimus attacked Superfortress 15789 | -2/Protoforge | Lost 8 parts (1p4n3u) 15790 | -2/Protoforge | Spotted Executioner 15790 | -2/Protoforge | Spotted Immortal 15799 | -2/Protoforge | Met 7R-MNS 15818 | -2/Protoforge | Found Prototype Protection 15818 | -2/Protoforge | Identified Centrium Heavy Armor Plating 15837 | -2/Protoforge | Lost 54 allies 15904 | -2/Protoforge | Lost 3 allies 15905 | -2/Protoforge | Spotted Striker 15906 | -2/Protoforge | Spotted Striker 15911 | -2/Protoforge | Destroyed Striker 15972 | -2/Protoforge | Spotted Hotshot 15977 | -2/Protoforge | Destroyed Hotshot 15981 | -2/Protoforge | Destroyed Hotshot 16014 | -2/Protoforge | Spotted Hotshot 16030 | -2/Protoforge | Destroyed Hotshot 16045 | -2/Protoforge | Spotted Hotshot 16093 | -2/Protoforge | Spotted Executioner 16109 | -2/Protoforge | Spotted Striker 16115 | -2/Protoforge | Spotted Striker 16115 | -2/Protoforge | Spotted Executioner 16115 | -2/Protoforge | Spotted Executioner 16118 | -2/Protoforge | Spotted Striker 16133 | -2/Protoforge | Spotted Executioner 16134 | -2/Protoforge | Destroyed by Executioner with Helical Railgun Last Messages --------------- 16121_ Cld. Nuclear Pulse Thruster destroyed. 16121_ Dropped Lgt. Quantum Reactor. 16121_ I-47 Archangel distress signal jammed. 16121_ Dropped Hyp. Multirail. 16121_ N-04 Retriever inserts Ovr. Medium Treads into Forge Plexus. 16122_ I-47 Archangel distress signal jammed. 16123_ Structural Scanner destroyed. 16123_ Slug penetrates Executioner. 16123_ I-47 Archangel distress signal jammed. 16124_ Slug penetrates Reinforced Barrier. 16124_ Slug penetrates Door. 16124_ Exp. Reaction Control System destroyed. 16124_ I-47 Archangel distress signal jammed. 16130_ >> Watcher Feeds: Established visual feed link with W-44 Eye. 16134_ Penetrated by Slug. 16134_ Slug penetrates Wall. 16134_ Penetrated by Slug. Map ----- +----------------------------------------------------+ | # # ##?????????????????????# """" | | """ # #########?????????????????????# """ | | """ # #########?????????????????????# | | """ # ##????????????????????????????# | | # ##????????????????????????????# " | | ######### ##????????????????????????????# | | ######### ##????????????????????????????# """"" | | #??????## #####?????????????????????????# "" "" | | #??????## #####?????????????????????????# "" " | | ???????### ##?????????????????????????# | | ???????### ##?????????????????????????# | | ????????## ##?????????????????????????# " | | ????????## ##?????????????????????????# | | ????????## ##????????????????????????## | | ########## ##????????????????????????## " | | ########## ##????????????????????????## """ | | ##????????????????????????## " """ | | ##????????????????????????## "" | | """" ##????????????????????????## | | """" ##????????????????????????## | | """" ############??????????????## """" | | """" ############??????????????## "" | | # """ """ ############????## " " | | """" C ## """ "" ############????## "%"% | | """" ## """ " ##;; ##????## """ | | """" w E # @ K ##????## " | | """" ## [= #### """ # ????## "" | | ;;!==! #### ##????## " " | | """" ##;%E ;*| #### "" ######## "%" " | | """" ##; !!##! % "# " ######## " | | """" ?## !%!=[%%;;#;;#"#""###"###### ### " " | | """" ?## [=! % %%%& % % % %"% % | | ? ??## *%[= %% % % %%%"% "% " | | ? ??#" =*% % % % !%**! % &! | | ? ???#" [=;%;;####%"#"#####!#!"%% "#![! | | ???#""#;#####!####=% ### *|!###""##[= "" | | ????# ???;! ??#=*% ""#######! [!!##=* " | | ? " ????# " "???######=! %""##????## ! ## "" "" | | "?????# "???######! [ R"##??#### ## "" | | ? "?????# "??##??##! """##??#### "" ## | | ????????# "" "??##?##" ######?+ "" ## | | ????????# "" ??##?###############?# T" ## "" | | ????????# " ?##?##????????????#?# ?" ## """ | | ????????# ??##?##????????????#?# ?" ######### | | ####????# ? ??##?##????????????#?#?? ######### | | ??##????###########?##????????????#?#######??????# | | ??##????###########?##????????????#?#######??????? | | ???????????????#######????????????#?#????##??????? | | ???????????????#######????????????#?#????##??????? | | ??????????????????????????????????#??????##??????? | +----------------------------------------------------+ Best States ------------- Heat Dissipation 139 Energy Generation 56 Energy Capacity 515 Matter Stores 300 Matter Capacity 300 Sight Range 16 Robot Scan Range 18 Terrain Scan Density 10 ECM Strength 1 Jamming Range 16 Cloak Strength 3 EM Shielding 4 Armor Coverage 550 Propulsion Shielding 90 Evasion (%) 78 Recoil Reduction 2 Offensive Hacking 40 Defensive Hacking 10 Relay Coupler Types 2 Relay Coupler Value 48 Authchip Count 1 Trap Extractor Capacity 8 Item Schematics ----------------- ECM Suite | -10/Materials | Hacked Hcp. Storage Unit | -10/Materials | Hacked Deep Structural Scanner | -5/Factory | Extrapolated Mak. Power Source | -5/Factory | Extrapolated Cld. VTOL Module | -5/Factory | Scanalyzed Spk. Medium Treads | -5/Factory | Extrapolated Spk. Heavy Treads | -5/Factory | Extrapolated Mak. Coolant Network | -5/Factory | Extrapolated 0b10 Decoder Chip [Skirmisher] | -5/Factory | Extrapolated Mak. ECM Suite | -5/Factory | Extrapolated Mak. Terrain Scan Processor | -5/Factory | Extrapolated Tactical Coordination Suite | -5/Factory | Extrapolated Mak. Targeting Computer | -5/Factory | Extrapolated Mak. Transmission Jammer | -5/Factory | Extrapolated Mak. Hacking Suite | -5/Factory | Extrapolated Mapping Drone Bay | -5/Factory | Extrapolated Machine Rigger | -5/Garrison | Extrapolated Mak. Kinetic Plating | -5/Factory | Extrapolated Mak. Salvage Targeting Computer | -5/Factory | Extrapolated Mak. System Shield | -5/Factory | Extrapolated Multitool | -5/Factory | Extrapolated Ripper | -5/Factory | Extrapolated Mak. Thermal Plating | -5/Factory | Extrapolated Mak. Heavy Armor Plating | -5/Factory | Extrapolated Cld. Nuclear Pulse Thruster | -5/Factory | Scanalyzed Com. HERF Cannon | -5/Factory | Hacked 0b10 Decoder Chip [Generic] | -5/Upper Caves | Extrapolated 0b10 Decoder Chip [Scout] | -5/Upper Caves | Extrapolated Mak. Terrain Scanner | -5/Upper Caves | Extrapolated Mak. Medium Armor Plating | -5/Upper Caves | Extrapolated Mak. Ablative Armor | -5/Zhirov | Extrapolated Assault Drone Bay | -5/Zhirov | Free Exp. Heat Sink | -5/Zhirov | Free Exp. Optical Array | -5/Zhirov | Free Imp. Arc Thrower | -5/Zhirov | Free Mak. Core Shielding | -4/Factory | Extrapolated Mak. System Restoration Module | -4/Factory | Extrapolated Mak. Trap Scanner | -4/Factory | Extrapolated Adv. System Restoration Module | -4/Factory | Scanalyzed Exp. Propulsion Shielding | -4/Factory | Hacked Lrn. Sensor Array | -4/Factory | Scanalyzed Adv. Cryofiber Web | -4/Factory | Hacked Exp. Signal Interpreter | -4/Factory | Hacked Graphene Brace | -4/Factory | Hacked Hvy. Wave Gun | -2/Protoforge | Archive Robot Schematics ------------------ H-77 Assassin | -4/Factory | Hacked Fabricated ------------ Adv. Shield Generator | x2 | -5/Factory | Preloaded O-32 Director | x1 | -4/Factory | Preloaded Exp. Propulsion Shielding | x1 | -4/Factory | Authchip Exp. Signal Interpreter | x1 | -2/Research | Authchip Repaired ---------- Cld. Nuclear Pulse Thruster | 10% | -4/Factory Nuclear Pulse Array | 31% | -3/Testing Exp. Propulsion Shielding | 9% | -2/Quarantine Studied --------- Nuclear Pulse Array | -5/Factory | Hacked Lgt. Deuterium Engine | -5/Factory | Hacked Mic. Fission Core | -4/Factory | Hacked Lgt. Antimatter Reactor | -4/Factory | Hacked Nuclear Pulse Thruster | -4/Factory | Hacked Alien Tech Used ----------------- Integrated Reactor Dimensional Node Initializer Subatomic Replicator High-powered Transdimensional Reconstructor Sigix Terminator Phase Armor Supercharged TR Achievements -------------- None Challenges ------------ None Game ------ Seed RocketLargeCloak Manual? 0 Play Time 04:07:25 Cumulative 309.2 hours Start 2026.04.02 @ 10:28:33 End 2026.04.02 @ 21:34:12 Sessions 3 Manual Loads 0 Difficulty Rogue Special Mode None Game No. 152 Rogue 152 Adventurer 0 Explorer 0 Win Type - Total 19 Types 7/0/5/1/4/1/0/0/0/1 Lore% 87 Gallery% 75 Achievement% 87 Wizard Run 0 Options --------- Layout 1 ASCII 0 Keyboard 0 Movement Numpad Keybinds 0 Fullscreen 1 Font 24/Smallcaps Map View 50x35 Zoom Use 0% Tactical HUD 1 Map Filters NONE Filters NONE Steam 1 RUN: 17ac65f0-bb88-44cb-bbb5-414d896c6e6f